bitfinex-derivatives/quotes_BTCF0:USTF0_20250728
["timestamp","ask_amount","ask_price","bid_price","bid_amount"]
[1753686718305,1.38506394,118930.0,118920.0,0.10266698]
[1753686718804,0.64622394,118930.0,118920.0,0.10266698]
[1753686719209,1.38446394,118930.0,118920.0,0.10266698]
[1753686719405,0.3102713,118930.0,118920.0,0.54134962]
[1753686719610,1.0485113,118930.0,118920.0,0.54134962]
[1753686720107,0.0866622,118930.0,118920.0,1.11471976]
[1753686720309,0.0197522,118930.0,118920.0,1.12955216]
[1753686720505,0.04066338,118950.0,118940.0,0.184535]
[1753686720712,0.06014,118960.0,118950.0,0.2920809]
[1753686721006,4e-05,118960.0,118950.0,0.6450759]
[1753686721310,0.73748,118960.0,118950.0,0.7291625]
[1753686721510,0.73753438,118960.0,118950.0,0.7291625]
[1753686721712,0.96574118,118960.0,118950.0,0.7291625]
[1753686721909,1.34004382,118960.0,118950.0,0.04857236]
[1753686722110,1.34004382,118960.0,118950.0,0.01704236]
[1753686722808,1.36496382,118960.0,118950.0,0.07744112]
[1753686723308,0.62752382,118960.0,118950.0,0.18516326]
[1753686723507,1.02821118,118960.0,118950.0,0.26728326]
[1753686723713,1.02821118,118960.0,118950.0,0.35918512]
[1753686724410,0.29157118,118960.0,118950.0,0.69513776]
[1753686724610,0.29157108,118960.0,118950.0,0.6450759]
[1753686724811,1.00622108,118960.0,118950.0,0.83484424]
[1753686725614,1.00622108,118960.0,118950.0,0.7291413]
[1753686726015,1.00622108,118960.0,118950.0,0.78950267]
[1753686726209,1.00626108,118960.0,118950.0,0.78950267]
[1753686726914,0.94809108,118960.0,118950.0,0.78950267]
[1753686727113,0.82011438,118960.0,118950.0,0.78950267]
[1753686727914,0.00113438,118960.0,118950.0,0.78950267]
[1753686728311,0.00113438,118960.0,118950.0,0.7291413]
[1753686729117,0.16924118,118960.0,118950.0,0.7291413]
[1753686729315,0.19478118,118960.0,118950.0,0.78945522]
[1753686730014,0.00113438,118960.0,118950.0,0.78945522]
[1753686730213,0.02667438,118960.0,118950.0,0.78945522]
[1753686730416,0.19478108,118960.0,118950.0,0.78945522]
[1753686730618,0.27481108,118960.0,118950.0,0.45350258]
[1753686730912,0.29161108,118960.0,118950.0,0.45350258]
[1753686731107,0.29161108,118960.0,118950.0,0.46864037]
[1753686731306,0.29161108,118960.0,118950.0,0.22506776]
[1753686731513,1.36052372,118960.0,118950.0,0.08789236]
[1753686731912,1.36052372,118960.0,118950.0,0.16334407]
[1753686732312,1.36052372,118960.0,118950.0,0.33146497]
[1753686732713,1.36052372,118960.0,118950.0,0.31485497]
[1753686733714,1.36052372,118960.0,118950.0,0.01704236]
[1753686734214,1.36052372,118960.0,118950.0,0.0923697]
[1753686735513,1.36052372,118960.0,118950.0,0.2604906]
[1753686735718,1.36052372,118960.0,118950.0,0.0923697]
[1753686735920,1.36052372,118960.0,118950.0,0.07532734]
[1753686737115,1.37926152,118960.0,118950.0,0.07532734]
[1753686737521,1.37926152,118960.0,118950.0,0.27497824]
[1753686737821,0.31034888,118960.0,118950.0,0.69951088]
[1753686738025,1.04094898,118960.0,118950.0,0.62418354]
[1753686739416,1.02221118,118960.0,118950.0,0.62418354]
[1753686739920,1.02221118,118960.0,118950.0,0.69951088]
[1753686740823,1.02221118,118960.0,118950.0,0.75708313]
[1753686741223,1.02221118,118960.0,118950.0,0.19543734]
[1753686742123,1.02221118,118960.0,118950.0,0.12011]
[1753686742324,1.02221118,118960.0,118950.0,0.19543734]
[1753686742624,1.02221118,118960.0,118950.0,0.36355824]
[1753686742826,1.02221118,118960.0,118950.0,0.19543734]
[1753686743624,1.02221118,118960.0,118950.0,0.36355834]
[1753686743929,1.02221118,118960.0,118950.0,0.19543734]
[1753686744122,1.02221118,118960.0,118950.0,0.36355824]
[1753686744427,1.02221118,118960.0,118950.0,0.12011]
[1753686744729,1.02221118,118960.0,118950.0,0.36363256]
[1753686744927,0.29161118,118960.0,118950.0,0.36363256]
[1753686745126,1.01993118,118960.0,118950.0,0.36363256]
[1753686745527,1.01993118,118960.0,118950.0,0.2882309]
[1753686745723,1.01993118,118960.0,118950.0,0.68175579]
[1753686748118,1.01993118,118960.0,118950.0,0.2882309]
[1753686748828,1.01993118,118960.0,118950.0,0.68175579]
[1753686749929,1.01993118,118960.0,118950.0,0.2882309]
[1753686753329,1.01993118,118960.0,118950.0,0.76582119]
[1753686755029,1.01993118,118960.0,118950.0,0.3722963]
[1753686755232,1.01993118,118960.0,118950.0,0.76582119]
[1753686755425,1.01993118,118960.0,118950.0,0.3722963]
[1753686756335,1.01993118,118960.0,118950.0,0.3487063]
[1753686758235,1.01993118,118960.0,118950.0,0.3722963]
[1753686759738,1.01993118,118960.0,118950.0,0.3487063]
[1753686760239,1.01993118,118960.0,118950.0,0.76582119]
[1753686760737,1.01993118,118960.0,118950.0,0.78370023]
[1753686761040,1.01545118,118960.0,118950.0,0.78370023]
[1753686763244,1.01545118,118960.0,118950.0,0.70811446]
[1753686765236,0.90195333,118960.0,118950.0,0.70811446]
[1753686765543,0.93519333,118960.0,118950.0,0.70811446]
[1753686765841,0.93519333,118960.0,118950.0,0.3722963]
[1753686766140,0.93519333,118960.0,118950.0,0.70811446]
[1753686767242,0.98266333,118960.0,118950.0,0.70811446]
[1753686767438,0.98266333,118960.0,118950.0,0.3722963]
[1753686768142,0.98266333,118960.0,118950.0,0.47818523]
[1753686768534,1.65429965,118960.0,118950.0,0.10588893]
[1753686768739,1.31848149,118960.0,118950.0,0.10588893]
[1753686773350,0.95553333,118960.0,118950.0,0.79920075]
[1753686774249,0.95553333,118960.0,118950.0,0.72358446]
[1753686774442,0.97874333,118960.0,118950.0,0.72358446]
[1753686776842,0.97874333,118960.0,118950.0,0.79920075]
[1753686781656,0.97874333,118960.0,118950.0,0.46338259]
[1753686781848,0.97874333,118960.0,118950.0,0.79920075]
[1753686782856,0.97874333,118960.0,118950.0,0.46338259]
[1753686783156,0.97874333,118960.0,118950.0,0.79920075]
[1753686786066,0.97874333,118960.0,118950.0,0.82947339]
[1753686787867,0.97874333,118960.0,118950.0,0.49365523]
[1753686788063,0.97874333,118960.0,118950.0,0.82947339]
[1753686788667,1.31456149,118960.0,118950.0,0.49365523]
[1753686789267,1.31416149,118960.0,118950.0,0.49365523]
[1753686790569,0.97834333,118960.0,118950.0,0.49365523]
[1753686790867,0.97386333,118960.0,118950.0,0.49365523]
[1753686791463,0.97386333,118960.0,118950.0,0.82947339]
[1753686792170,0.97386333,118960.0,118950.0,0.49365523]
[1753686792569,0.25846333,118960.0,118950.0,0.49365523]
[1753686792870,0.97346333,118960.0,118950.0,0.82947339]
[1753686793165,0.25846333,118960.0,118950.0,0.82947339]
[1753686793368,0.97310333,118960.0,118950.0,0.82947339]
[1753686794669,0.25846333,118960.0,118950.0,0.82947339]
[1753686794872,0.97254333,118960.0,118950.0,0.82947339]
[1753686795962,0.8821068,118960.0,118950.0,0.82947339]
[1753686796169,0.1681468,118960.0,118950.0,0.79921481]
[1753686796369,0.1681467,118960.0,118950.0,1.51313481]
[1753686796570,0.2242467,118960.0,118950.0,1.51313481]
[1753686796870,0.2242467,118960.0,118950.0,0.79921471]
[1753686799566,0.2242467,118960.0,118950.0,0.72358436]
[1753686805283,0.2242467,118960.0,118950.0,0.74055424]
[1753686805480,0.2242467,118960.0,118950.0,0.84641074]
[1753686806164,0.2242467,118960.0,118950.0,0.74055424]
[1753686806371,0.2242467,118960.0,118950.0,0.84640253]
[1753686807169,0.2489267,118960.0,118950.0,0.74055424]
[1753686807669,0.2489267,118960.0,118950.0,0.57243344]
[1753686807871,0.2489267,118960.0,118950.0,0.23661528]
[1753686808673,0.2489267,118960.0,118950.0,0.40473618]
[1753686808867,0.2489267,118960.0,118950.0,0.74053909]
[1753686810684,0.2082967,118960.0,118950.0,0.74053909]
[1753686810977,0.1681467,118960.0,118950.0,0.84630506]
[1753686811177,0.1681467,118960.0,118950.0,0.74047529]
[1753686812780,0.1847967,118960.0,118950.0,0.74047529]
[1753686812989,0.2242467,118960.0,118950.0,0.74047529]
[1753686814279,0.2242467,118960.0,118950.0,0.72358446]
[1753686814479,0.2242467,118960.0,118950.0,0.74034289]
[1753686817281,0.2082967,118960.0,118950.0,0.74034289]
[1753686817585,0.1847967,118960.0,118950.0,0.74034289]
[1753686819689,0.1681467,118960.0,118950.0,0.74034289]
[1753686820892,0.1681467,118960.0,118950.0,0.40452473]
[1753686821078,0.1681467,118960.0,118950.0,0.74034289]
[1753686821477,0.1847967,118960.0,118950.0,0.74034289]
[1753686821693,0.2242467,118960.0,118950.0,0.74034289]
[1753686821989,0.2489267,118960.0,118950.0,0.74034289]
[1753686823685,0.9624867,118960.0,118950.0,0.74034289]
[1753686824189,0.9378067,118960.0,118950.0,0.74034289]
[1753686824685,0.9377667,118960.0,118950.0,0.74034289]
[1753686825690,0.2242467,118960.0,118950.0,0.74034289]
[1753686825893,0.9377667,118960.0,118950.0,0.74034289]
[1753686826389,0.2242467,118960.0,118950.0,0.74034289]
[1753686826589,0.9377267,118960.0,118950.0,0.74034289]
[1753686827086,0.9147267,118960.0,118950.0,0.74034289]
[1753686827291,0.9380667,118960.0,118950.0,0.74034289]
[1753686827687,0.9380667,118960.0,118950.0,0.76234289]
[1753686827991,0.9400667,118960.0,118950.0,0.76234289]
[1753686828192,0.9167267,118960.0,118950.0,0.76234289]
[1753686831294,0.8606267,118960.0,118950.0,0.76234289]
[1753686831895,0.1471467,118960.0,118950.0,0.76234289]
[1753686832388,0.1629367,118960.0,118950.0,0.76234289]
[1753686832693,0.2036767,118960.0,118950.0,0.76234289]
[1753686833193,0.2036767,118960.0,118950.0,0.86817266]
[1753686837099,0.2036767,118960.0,118950.0,0.76234289]
[1753686838796,0.1471467,118960.0,118950.0,0.76234289]
[1753686839001,0.002,118960.0,118950.0,0.76234289]
[1753686839300,0.1701068,118960.0,118950.0,0.8380021]
[1753686839696,0.002,118960.0,118950.0,0.8380021]
[1753686839898,0.1701068,118960.0,118950.0,0.8380021]
[1753686843302,0.1858968,118960.0,118950.0,0.8380021]
[1753686843502,0.2105168,118960.0,118950.0,0.76234289]
[1753686844604,0.2105168,118960.0,118950.0,0.76252129]
[1753686844904,0.2266368,118960.0,118950.0,0.76252129]
[1753686845108,0.58579496,118960.0,118950.0,0.25858223]
[1753686845307,0.58579496,118960.0,118950.0,0.42670313]
[1753686845905,0.58579496,118960.0,118950.0,0.25858223]
[1753686846404,0.58579496,118960.0,118950.0,0.42670313]
[1753686847204,0.2499768,118960.0,118950.0,0.42670313]
[1753686848104,0.26837797,118960.0,118950.0,0.4097663]
[1753686851200,0.60419613,118960.0,118950.0,0.13405]
[1753686851594,0.0594111,118950.0,118930.0,0.02304]
[1753686851804,0.54694316,118940.0,118930.0,0.1911891]
[1753686852101,0.921305,118940.0,118930.0,0.63683726]
[1753686852301,0.922005,118940.0,118930.0,0.72090266]
[1753686852803,0.922005,118940.0,118930.0,0.72290266]
[1753686853004,0.924005,118940.0,118930.0,0.3930845]
[1753686853401,0.924045,118940.0,118930.0,0.3930845]
[1753686854310,0.924045,118940.0,118930.0,0.72890266]
[1753686854506,0.924045,118940.0,118930.0,0.330753]
[1753686854706,0.211245,118940.0,118930.0,0.4989021]
[1753686854906,0.923965,118940.0,118930.0,0.4989021]
[1753686855107,0.923965,118940.0,118930.0,0.83472026]
[1753686855303,0.923965,118940.0,118930.0,0.72890266]
[1753686856207,0.211245,118940.0,118930.0,0.72890266]
[1753686856607,0.923965,118940.0,118930.0,0.72890266]
[1753686857008,0.924965,118940.0,118930.0,0.72890266]
[1753686858008,0.924965,118940.0,118930.0,0.56075356]
[1753686859611,0.924965,118940.0,118930.0,0.72890276]
[1753686859910,0.924965,118940.0,118930.0,0.56075356]
[1753686860211,0.924965,118940.0,118930.0,0.2249354]
[1753686860608,1.26078316,118940.0,118930.0,0.2249354]
[1753686861414,0.924845,118940.0,118930.0,0.2249354]
[1753686861916,0.212245,118940.0,118930.0,0.2249354]
[1753686862107,0.924805,118940.0,118930.0,0.2249354]
[1753686863114,1.26062316,118940.0,118930.0,0.2249354]
[1753686863716,1.26062316,118940.0,118930.0,0.3930846]
[1753686863913,0.924805,118940.0,118930.0,0.3930846]
[1753686864114,0.212245,118940.0,118930.0,0.3930846]
[1753686864414,0.924725,118940.0,118930.0,0.3930846]
[1753686865014,0.924725,118940.0,118930.0,0.2249354]
[1753686866416,1.26054316,118940.0,118930.0,0.2249354]
[1753686867317,0.54806316,118940.0,118930.0,0.2249354]
[1753686867616,1.26038316,118940.0,118930.0,0.2249354]
[1753686869019,1.26082316,118940.0,118930.0,0.2016054]
[1753686869208,1.26082316,118940.0,118930.0,0.03104]
[1753686870412,1.27986387,118940.0,118930.0,0.008]
[1753686871219,1.27986387,118940.0,118930.0,0.13917]
[1753686871617,0.2082591,118930.0,118920.0,9.384e-05]
[1753686871814,0.54407726,118930.0,118920.0,9.384e-05]
[1753686872015,0.96225326,118930.0,118920.0,9.384e-05]
[1753686872211,0.96225326,118930.0,118920.0,0.02310384]
[1753686872415,1.25619726,118930.0,118920.0,0.02310384]
[1753686872819,1.25719726,118930.0,118920.0,0.02510384]
[1753686873017,0.71325326,118930.0,118920.0,4e-08]
[1753686873218,0.1840675,118910.0,118900.0,0.02801]
[1753686873421,0.1840675,118910.0,118900.0,0.10345862]
[1753686873422,1.25622566,118910.0,118900.0,0.10345862]
[1753686873717,1.25622566,118910.0,118900.0,0.12105981]
[1753686873718,1.25422566,118910.0,118900.0,0.12105981]
[1753686874124,0.20636891,118910.0,118900.0,0.15348981]
[1753686874418,1.25430707,118910.0,118900.0,0.16982981]
[1753686874625,0.91848891,118910.0,118900.0,0.56503797]
[1753686875216,0.91848891,118910.0,118900.0,0.48958935]
[1753686875622,0.20736891,118910.0,118900.0,0.65778095]
[1753686875820,0.92240891,118910.0,118900.0,0.81733032]
[1753686876425,0.92240891,118910.0,118900.0,0.48151216]
[1753686876625,0.92240891,118910.0,118900.0,0.31332056]
[1753686876822,0.92240891,118910.0,118900.0,0.81733032]
[1753686877022,0.21036891,118910.0,118900.0,0.7418817]
[1753686877217,0.88225891,118910.0,118900.0,0.7418817]
[1753686877426,0.71608141,118910.0,118900.0,0.8080136]
[1753686877626,0.88425891,118910.0,118900.0,0.8080136]
[1753686878526,0.17225891,118910.0,118900.0,0.8080136]
[1753686878729,0.21236891,118910.0,118900.0,0.8080136]
[1753686880134,0.92432891,118910.0,118900.0,0.8080136]
[1753686880734,0.21236891,118910.0,118900.0,0.8080136]
[1753686880934,0.92424891,118910.0,118900.0,0.8080136]
[1753686881335,0.92420891,118910.0,118900.0,0.8080136]
[1753686881939,1.26002707,118910.0,118900.0,0.23787194]
[1753686882131,1.26028707,118910.0,118900.0,0.23787194]
[1753686882439,0.92462891,118910.0,118900.0,0.23787194]
[1753686884541,0.21278891,118910.0,118900.0,0.23787194]
[1753686884838,0.92446891,118910.0,118900.0,0.23787194]
[1753686885044,0.92446891,118910.0,118900.0,0.31336533]
[1753686885842,0.92446891,118910.0,118900.0,0.48155693]
[1753686886738,0.21278891,118910.0,118900.0,0.48155693]
[1753686886941,0.92438891,118910.0,118900.0,0.81737509]
[1753686888132,0.92438891,118910.0,118900.0,0.64918349]
[1753686888843,0.21278891,118910.0,118900.0,0.64918349]
[1753686889044,0.92430891,118910.0,118900.0,0.64918349]
[1753686890832,0.21278891,118910.0,118900.0,0.5736901]
[1753686891034,0.92418891,118910.0,118900.0,0.5736901]
[1753686891446,0.92418891,118910.0,118900.0,0.23787194]
[1753686892941,0.21278891,118910.0,118900.0,0.23787194]
[1753686893135,0.92418891,118910.0,118900.0,0.23787194]
[1753686894444,0.92378891,118910.0,118900.0,0.23787194]
[1753686895047,0.21238891,118910.0,118900.0,0.5736901]
[1753686895248,0.92366891,118910.0,118900.0,0.5736901]
[1753686895641,0.92326891,118910.0,118900.0,0.5736901]
[1753686896342,0.21158891,118910.0,118900.0,0.64918349]
[1753686896646,0.92278891,118910.0,118900.0,0.64918349]
[1753686898042,0.92278891,118910.0,118900.0,0.31336533]
[1753686898544,0.54740707,118910.0,118900.0,0.31336533]
[1753686898742,1.25844707,118910.0,118900.0,0.34368954]
[1753686898945,1.25870707,118910.0,118900.0,0.39661962]
[1753686899142,1.25870707,118910.0,118900.0,0.29080202]
[1753686900444,0.92262891,118910.0,118900.0,0.48381362]
[1753686900640,0.92262891,118910.0,118900.0,0.81963178]
[1753686901946,0.75437141,118910.0,118900.0,0.81963178]
[1753686902150,0.71376141,118910.0,118900.0,0.81963178]
[1753686902353,0.92174891,118910.0,118900.0,0.81963188]
[1753686902553,0.75357141,118910.0,118900.0,0.7440518]
[1753686902860,0.75353141,118910.0,118900.0,0.7440518]
[1753686903054,0.92170891,118910.0,118900.0,0.7440518]
[1753686903654,0.92166891,118910.0,118900.0,0.7440518]
[1753686905858,0.75349141,118910.0,118900.0,0.7440518]
[1753686906052,0.21086891,118910.0,118900.0,0.7440518]
[1753686906247,0.92158891,118910.0,118900.0,0.7440518]
[1753686906453,0.92158891,118910.0,118900.0,0.81971591]
[1753686906756,0.92158891,118910.0,118900.0,0.7440518]
[1753686909259,1.01636891,118910.0,118900.0,0.33581816]
[1753686909460,1.01636891,118910.0,118900.0,0.65690402]
[1753686911362,1.01636891,118910.0,118900.0,0.72515402]
[1753686911861,1.01636891,118910.0,118900.0,0.38933586]
[1753686912767,1.01640891,118910.0,118900.0,0.72515402]
[1753686913364,1.01600891,118910.0,118900.0,0.72515402]
[1753686918059,1.01568891,118910.0,118900.0,0.72515402]
[1753686918465,0.84751141,118910.0,118900.0,0.72515402]
[1753686918865,0.84751141,118910.0,118900.0,0.89351094]
[1753686919258,1.01568891,118910.0,118900.0,0.99944095]
[1753686919460,1.01564891,118910.0,118900.0,0.99944095]
[1753686920465,0.84747141,118910.0,118900.0,0.99944095]
[1753686920665,1.01564891,118910.0,118900.0,0.99944095]
[1753686920866,0.13751141,118910.0,118900.0,0.99944095]
[1753686921073,1.01556891,118910.0,118900.0,0.99944095]
[1753686921261,0.84739141,118910.0,118900.0,0.89351094]
[1753686921567,1.01556891,118910.0,118900.0,0.89351094]
[1753686922757,1.01544891,118910.0,118900.0,0.89351094]
[1753686923261,1.26753645,118910.0,118900.0,0.20686416]
[1753686923560,1.26753645,118910.0,118900.0,0.20609068]
[1753686924468,1.26753645,118910.0,118900.0,0.28173634]
[1753686924860,1.51962399,118910.0,118900.0,0.01607341]
[1753686925164,0.3201916,118900.0,118890.0,0.31849056]
[1753686925469,0.82436668,118900.0,118890.0,0.40259131]
[1753686925669,0.82436668,118900.0,118890.0,0.50847729]
[1753686926056,0.82436668,118900.0,118890.0,0.25638975]
[1753686926366,0.82436668,118900.0,118890.0,0.40259131]
[1753686926567,1.53384668,118900.0,118890.0,0.22612478]
[1753686926769,1.36893626,118900.0,118890.0,0.22612478]
[1753686927461,1.36993626,118900.0,118890.0,0.15050377]
[1753686927661,1.36993626,118900.0,118890.0,0.16675346]
[1753686928064,1.36993626,118900.0,118890.0,0.27263944]
[1753686928372,1.36993626,118900.0,118890.0,0.44084514]
[1753686928672,1.36997626,118900.0,118890.0,0.44084514]
[1753686928969,1.36997626,118900.0,118890.0,0.33495916]
[1753686929677,1.36997626,118900.0,118890.0,0.44084514]
[1753686929866,1.36997626,118900.0,118890.0,0.47059514]
[1753686930164,1.36997626,118900.0,118890.0,0.50558514]
[1753686930362,1.0334716,118900.0,118890.0,0.44084514]
[1753686930563,1.0334716,118900.0,118890.0,0.33495916]
[1753686930769,1.0324716,118900.0,118890.0,0.36470916]
[1753686930959,1.36973626,118900.0,118890.0,0.44133916]
[1753686931361,1.0334716,118900.0,118890.0,0.46027916]
[1753686931672,0.3242316,118900.0,118890.0,0.46027916]
[1753686931875,0.86532,118900.0,118890.0,0.47933916]
[1753686932171,1.0335116,118900.0,118890.0,0.47933916]
[1753686936977,0.86492,118900.0,118890.0,0.81560382]
[1753686937177,1.0331117,118900.0,118890.0,0.46027916]
[1753686937371,1.0331117,118900.0,118890.0,0.47933916]
[1753686937777,1.0331117,118900.0,118890.0,0.81560382]
[1753686939476,1.0331117,118900.0,118890.0,0.92139856]
[1753686942674,1.0331117,118900.0,118890.0,0.81560382]
[1753686943980,1.0327517,118900.0,118890.0,0.81560382]
[1753686945081,0.3242317,118900.0,118890.0,0.81560382]
[1753686945282,1.0326317,118900.0,118890.0,0.81560382]
[1753686945781,0.86444,118900.0,118890.0,0.81560382]
[1753686948279,0.15604,118900.0,118890.0,0.81560382]
[1753686948487,0.10425,118900.0,118890.0,0.81560382]
[1753686948678,0.1556,118900.0,118890.0,0.81560382]
[1753686951781,0.49186466,118900.0,118890.0,0.10035044]
[1753686951988,0.11085,118890.0,118880.0,0.0001]
[1753686952285,0.9868957,118890.0,118880.0,0.48467466]
[1753686952487,0.03348,118890.0,118880.0,0.73700238]
[1753686952683,0.08557,118900.0,118890.0,0.3165157]
[1753686952989,0.07465,118900.0,118890.0,0.65278036]
[1753686953175,4e-05,118900.0,118890.0,1.42732951]
[1753686953379,4e-05,118900.0,118890.0,1.69558871]
[1753686953688,0.2496808,118930.0,118920.0,0.3164734]
[1753686953884,0.21650701,118940.0,118920.0,0.82083932]
[1753686954082,0.26871701,118940.0,118930.0,0.65272386]
[1753686954987,0.26871701,118940.0,118930.0,0.73680693]
[1753686956189,0.27071701,118940.0,118930.0,0.73680693]
[1753686956583,0.27871701,118940.0,118930.0,0.73680693]
[1753686956888,0.27671701,118940.0,118930.0,0.73680693]
[1753686957091,0.260665,118940.0,118930.0,0.40054227]
[1753686957281,0.260665,118940.0,118930.0,0.73680693]
[1753686957882,0.289985,118940.0,118930.0,0.73680683]
[1753686958689,0.289985,118940.0,118930.0,0.23239307]
[1753686958986,0.62624966,118940.0,118930.0,0.40054227]
[1753686959490,0.289985,118940.0,118930.0,0.40054227]
[1753686961081,0.62624966,118940.0,118930.0,0.02927]
[1753686961281,0.2789992,118930.0,118920.0,0.3164706]
[1753686961583,0.61526386,118930.0,118920.0,0.40055013]
[1753686961790,0.2789992,118930.0,118920.0,0.40055013]
[1753686962090,0.61526386,118930.0,118920.0,0.40055013]
[1753686962693,0.61526386,118930.0,118920.0,0.47600071]
[1753686962888,0.07761,118930.0,118920.0,0.81226537]
[1753686963094,0.009,118930.0,118920.0,0.81226537]
[1753686963788,0.2293092,118930.0,118920.0,0.81226537]
[1753686964091,0.06116,118930.0,118920.0,0.81226537]
[1753686964286,0.06116,118930.0,118920.0,0.47600071]
[1753686964486,0.06116,118930.0,118920.0,0.73681479]
[1753686964683,0.2770792,118930.0,118920.0,0.25224013]
[1753686964993,0.62426386,118930.0,118920.0,0.22250011]
[1753686965292,0.62426386,118930.0,118920.0,0.31521283]
[1753686965787,0.62426386,118930.0,118920.0,0.10472058]
[1753686966194,0.62426386,118930.0,118920.0,0.02927]
[1753686966890,0.62426386,118930.0,118920.0,0.1974334]
[1753686967090,0.2879992,118930.0,118920.0,0.2311334]
[1753686967292,0.62426386,118930.0,118920.0,0.2311334]
[1753686967990,0.62426386,118930.0,118920.0,0.2311333]
[1753686968386,0.45611466,118930.0,118910.0,0.07545058]
[1753686968599,1.32219796,118920.0,118910.0,0.1974449]
[1753686969094,1.32219796,118920.0,118910.0,0.3164849]
[1753686970394,1.32319796,118920.0,118910.0,0.3164849]
[1753686971305,1.32819796,118920.0,118910.0,0.14831]
[1753686972900,1.32819796,118920.0,118910.0,0.12171]
[1753686973088,0.62127796,118920.0,118910.0,0.12171]
[1753686973289,1.32795796,118920.0,118910.0,0.12171]
[1753686975297,1.32795796,118920.0,118910.0,0.02927]
[1753686976107,1.32795796,118920.0,118900.0,0.0792]
[1753686976108,0.2797075,118910.0,118900.0,0.0792]
[1753686976403,0.2797075,118910.0,118890.0,0.08268453]
[1753686976404,0.2797216,118900.0,118890.0,0.04352538]
[1753686976613,1.32246626,118900.0,118890.0,0.01593538]
[1753686976902,0.2797358,118890.0,118880.0,0.14832]
[1753686977096,0.61600046,118890.0,118880.0,0.14832]
[1753686977294,0.61600046,118890.0,118880.0,0.23241368]
[1753686977499,0.2797358,118890.0,118880.0,0.23241368]
[1753686977902,0.2797358,118890.0,118880.0,0.80339909]
[1753686978501,0.2797358,118890.0,118880.0,0.63517919]
[1753686978701,0.2797358,118890.0,118880.0,0.80339909]
[1753686978904,0.2797358,118890.0,118880.0,0.83195937]
[1753686979703,0.9860958,118890.0,118880.0,0.83195937]
[1753686980809,0.9880958,118890.0,118880.0,0.83195937]
[1753686981517,0.61800046,118890.0,118880.0,0.20684481]
[1753686981804,0.9890958,118890.0,118880.0,0.26097396]
[1753686982508,0.9890958,118890.0,118880.0,0.23292396]
[1753686983007,1.32536046,118890.0,118880.0,0.14883028]
[1753686983302,1.32540046,118890.0,118880.0,0.14883028]
[1753686983508,1.32540046,118890.0,118880.0,0.31705018]
[1753686983708,1.32540046,118890.0,118880.0,0.14883028]
[1753686983905,0.9891358,118890.0,118880.0,0.14883028]
[1753686984105,1.32540046,118890.0,118880.0,0.31705018]
[1753686985007,0.9891358,118890.0,118880.0,0.31705018]
[1753686985203,0.9891358,118890.0,118880.0,0.34510018]
[1753686988514,0.9891358,118890.0,118880.0,0.68136484]
[1753686989409,0.9891358,118890.0,118880.0,0.51314494]
[1753686989611,1.32540046,118890.0,118880.0,0.14883028]
[1753686989903,0.61904046,118890.0,118880.0,0.14883028]
[1753686990106,1.32496046,118890.0,118880.0,0.14883028]
[1753686991213,1.32496046,118890.0,118880.0,0.05625028]
[1753686992011,0.9886958,118890.0,118880.0,0.44662494]
[1753686992212,0.2827758,118890.0,118880.0,0.17688028]
[1753686992415,0.9886558,118890.0,118880.0,0.34510018]
[1753686992917,0.2827758,118890.0,118880.0,0.34510018]
[1753686993118,0.9885758,118890.0,118880.0,0.51314494]
[1753686993416,0.9885758,118890.0,118880.0,0.68136484]
[1753686994318,0.9885758,118890.0,118880.0,0.34510018]
[1753686995516,1.49307246,118890.0,118880.0,0.02866028]
[1753686995720,1.32484046,118890.0,118880.0,0.05625028]
[1753686997721,1.32468046,118890.0,118880.0,0.05625028]
[1753686998621,1.32468046,118890.0,118880.0,0.02866028]
[1753686999322,0.69281558,118890.0,118880.0,0.05625028]
[1753686999621,0.86102138,118890.0,118880.0,0.05625028]
[1753687002018,1.08518138,118890.0,118880.0,0.05625028]
[1753687002622,1.42144604,118890.0,118880.0,0.0001]
[1753687002930,0.4523165,118890.0,118880.0,0.04886]
[1753687003226,0.78858116,118890.0,118880.0,0.0001]
[1753687003630,0.4523165,118890.0,118880.0,0.0001]
[1753687003824,0.78858116,118890.0,118880.0,0.0001]
[1753687004822,0.52283062,118900.0,118880.0,0.0001]
[1753687005023,0.35599276,118890.0,118880.0,0.0001]
[1753687005622,0.1682199,118880.0,118870.0,0.41329529]
[1753687005819,0.1682341,118870.0,118860.0,0.22022]
[1753687006023,0.2123382,118860.0,118850.0,0.55659152]
[1753687006419,0.2128282,118860.0,118850.0,0.48173893]
[1753687006618,0.2128282,118860.0,118850.0,0.36488403]
[1753687006823,0.2128282,118860.0,118850.0,0.53314643]
[1753687007430,0.21293091,118860.0,118850.0,0.53314643]
[1753687007624,0.19597091,118860.0,118850.0,0.69245643]
[1753687008130,0.19597091,118860.0,118850.0,0.74121643]
[1753687008430,0.19597091,118860.0,118850.0,0.80212643]
[1753687008631,0.19597091,118860.0,118850.0,1.50708643]
[1753687009029,0.19697091,118860.0,118850.0,1.50708643]
[1753687009234,0.19897091,118860.0,118850.0,1.50708643]
[1753687010733,0.19901091,118860.0,118850.0,1.50708643]
[1753687011336,0.19901091,118860.0,118850.0,0.80212643]
[1753687011833,0.19871091,118860.0,118850.0,1.50696643]
[1753687012033,0.17139091,118860.0,118850.0,1.50696643]
[1753687012235,0.00314271,118860.0,118850.0,1.59110256]
[1753687012426,0.17139091,118860.0,118850.0,1.59110256]
[1753687013023,0.17139091,118860.0,118850.0,1.2548379]
[1753687013329,0.17158091,118860.0,118850.0,1.59106256]
[1753687014228,0.19871091,118860.0,118850.0,0.88626256]
[1753687014431,0.19871091,118860.0,118850.0,1.59098256]
[1753687014832,0.18697787,118870.0,118850.0,1.26242016]
[1753687015033,0.35521197,118870.0,118860.0,0.60524466]
[1753687016135,0.35621197,118870.0,118860.0,1.30992466]
[1753687016536,0.35821197,118870.0,118860.0,0.97366]
[1753687016737,0.35821197,118870.0,118860.0,1.30992466]
[1753687021231,0.35821197,118870.0,118860.0,0.60524466]
[1753687021432,0.35821197,118870.0,118860.0,1.30960466]
[1753687021637,0.35821197,118870.0,118860.0,0.97334]
[1753687021838,0.35821197,118870.0,118860.0,1.30960466]
[1753687022531,0.35821197,118870.0,118860.0,0.97334]
[1753687022742,0.35821197,118870.0,118860.0,1.30960466]
[1753687023641,0.35821197,118870.0,118860.0,0.60524466]
[1753687023842,0.35821197,118870.0,118860.0,1.30940466]
[1753687024030,0.35821197,118870.0,118860.0,0.60524466]
[1753687024235,0.35821197,118870.0,118860.0,0.93112]
[1753687024537,0.52333004,118880.0,118870.0,0.04876]
[1753687024937,0.56540654,118880.0,118850.0,0.14015937]
[1753687025138,0.39716654,118880.0,118860.0,0.04876]
[1753687025350,0.39716654,118880.0,118860.0,0.38502466]
[1753687025530,0.06090188,118880.0,118870.0,0.04876]
[1753687025731,0.39936178,118880.0,118870.0,0.04876]
[1753687025940,0.64936178,118880.0,118870.0,0.04876]
[1753687026541,0.64736178,118880.0,118870.0,0.04876]
[1753687026847,0.64936178,118880.0,118870.0,0.04876]
[1753687027036,1.35344178,118880.0,118870.0,0.04876]
[1753687027236,1.10344178,118880.0,118870.0,0.04876]